[Event "58th Akiba Rubinstein D 2022"]
[Site "Polanica-Zdroj"]
[Date "2022.08.21"]
[Round "9.5"]
[White "Lewandrowski, Tomasz"]
[Black "Klisowski, Bartosz"]
[Result "1-0"]
[ECO "A48"]
[WhiteElo "1902"]
[BlackElo "1595"]
[Annotator "TA"]
[PlyCount "149"]
[EventDate "2022.08.13"]
[EventCountry "POL"]
[SourceTitle "playchess.com"]
[Source "ChessBase"]
[SourceQuality "1"]
[TimeControl "40/5400+30:1800+30"]

{[%evp 9,149,28,20,20,42,22,44,14,20,15,35,20,35,0,0,0,14,0,29,14,16,14,29,16,22,15,183,0,118,102,91,0,0,0,40,27,34,8,91,0,19,19,19,19,19,19,19,19,19,20,34,-13,-13,-38,-38,-38,-38,-38,-8,-8,-8,-11,0,0,0,0,138,111,279,268,261,258,217,208,432,437,564,527,590,544,487,322,1422,1321,6609,5499,8749,10725,6396,6537,5135,5135,29947,29950,29949,4586,2735,1232,29961,29963,29959,29954,29968,29970,29970,29970,29970,29972,29973,29974,29974,29970,29970,29971,29972,29973,29975,29977,29977,29976,29976,29977,29977,29978,29978,29979,29979,29980,29982,29980,29980,29981,29980,29981,29985,29985,29985,29984,29984,29985,29985,29984]} 1. d4 {[%emt 0:00:01]} Nf6 {[%emt 0:00:07]} 2. Nf3 {[%emt 0:00:06]} g6 {[%emt 0:01:35]} 3. Nc3 {[%emt 0:00:38]} d5 {[%emt 0:00:02]} 4. Bf4 {[%emt 0:01:08]} c5 {[%emt 0:00:58]} 5. e3 {[%emt 0:00:32]} cxd4 {[%emt 0:00:07]} 6. exd4 {[%emt 0:00:14] D00: 1 d4 d5: Unusual lines.} a6 {[%emt 0:00:34] Inhibits Nb5.} 7. Qd2 {[%emt 0:02:48] [#]} h5 $146 {[%emt 0:04:10]} ({Predecessor:} 7... h6 8. Bd3 Nc6 9. Ne5 Bf5 10. Bxf5 gxf5 11. f3 Rc8 12. a3 e6 13. Na4 Nxe5 14. Bxe5 {1-0 (50) Datuashvili,N (2083)-Oney,A (2054) Marmaris 2019}) 8. Ne5 {[%emt 0:02:05] White is slightly better.} Bf5 {[%emt 0:03:55]} 9. f3 {[%emt 0:01:36]} Nc6 {[%emt 0:04:04]} 10. Nxc6 {[%emt 0:02:10]} bxc6 {[%emt 0:00:05]} 11. Bd3 {[%emt 0:00:19]} Bxd3 {[%emt 0:01:26]} 12. Qxd3 {[%emt 0:00:02]} Nd7 {[%emt 0:05:45]} 13. O-O {[%emt 0:12:39]} Qb6 {[%emt 0:03:29]} 14. Rfe1 {[%emt 0:02:06]} e6 {[%emt 0:05:15]} 15. Rad1 {[%emt 0:24:05]} Be7 {[%emt 0:01:04]} (15... Qxb2 16. Rb1 Qa3 17. Rb7 $16) 16. Kh1 {[%emt 0:03:38]} Rc8 {[%emt 0:02:12]} 17. b3 {[%emt 0:05:31]} c5 $2 {[%emt 0:02:04] [#]} (17... Qb7 $11) 18. Qe2 $2 {[%emt 0:03:01]} (18. Nxd5 $1 $18 {[%mdl 512]} exd5 19. Bg5) 18... Nf6 {[%emt 0:08:07]} (18... Qb7 $1 $11) 19. Be5 {Bxf6 is the strong threat. White is more active.} O-O {[%emt 0:00:31]} 20. Bxf6 {[%emt 0:08:44]} (20. Na4 $16 Qc6 21. Nxc5) 20... Bxf6 $11 {[%emt 0:03:22]} 21. Na4 {[%emt 0:00:35][%csl LRb6,LRc5]} Qc6 {[%emt 0:02:45]} 22. dxc5 {[%emt 0:00:54]} Be7 {[%emt 0:01:52]} 23. Nb6 {[%emt 0:00:17]} Rb8 {[%emt 0:00:05] [#]} (23... Rc7 $11 24. b4 (24. Qxa6 $2 Bxc5 25. c4 dxc4 $19) 24... a5) 24. b4 {[%emt 0:00:56]} ({Don't blunder} 24. Qxa6 $2 Bxc5 25. Qf1 Bxb6 $19) (24. Nxd5 $1 $16 Bh4 25. Qe4 (25. g3 exd5 26. gxh4 Rb5 $14) 25... exd5 26. Qxh4) 24... Bd8 {[%emt 0:00:26]} 25. c4 {[%emt 0:03:16][%cal Rc4d5]} Bxb6 {[%emt 0:00:26]} 26. cxd5 {[%emt 0:00:13]} exd5 {[%emt 0:00:22]} 27. Qxa6 {[%emt 0:01:38][%mdl 64] Pin} Rfc8 {[%emt 0:01:23][%cal Ob6c5]} 28. cxb6 {[%emt 0:00:16]} Rxb6 {[%emt 0:00:04]} 29. Qa3 {[%emt 0:03:14]} Rcb8 {[%emt 0:04:26]} 30. Rb1 {[%emt 0:00:41]} (30. Rd4 $14 {feels stronger.}) 30... Qd6 {[%emt 0:00:53]} 31. Qc3 {[%emt 0:02:43][%cal Ob4b5]} d4 {[%emt 0:02:00]} (31... Rxb4 $2 32. Rxb4 Qxb4 33. Re8+ $3 {[%mdl 512]} Rxe8 34. Qxb4 $18) 32. Qd2 {[%emt 0:01:05]} Rxb4 {[%emt 0:00:44]} 33. Rxb4 {[%emt 0:00:19]} Qxb4 {[%emt 0:02:24]} 34. Qxb4 {[%emt 0:01:05]} Rxb4 $15 {[%emt 0:00:37][%mdl 4096] Endgame KR-KR} 35. Kg1 {[%emt 0:00:02]} Rb2 {[%emt 0:00:41]} 36. Ra1 {[%emt 0:00:21]} Kf8 {[%emt 0:00:48]} 37. a4 {[%emt 0:00:10][%cal Ba2a4,Ba4a5,Ba5a6][%mdl 32] aiming for a5.} Ke7 {[%emt 0:01:36]} (37... d3 $11 {remains equal.}) 38. a5 $16 {[%emt 0:00:26] Black is now going downhill.} Rb7 $2 {[%emt 0:02:54]} (38... d3 $16) 39. a6 {[%emt 0:01:02]} Ra7 {[%emt 0:00:12]} 40. Kf2 {[%emt 0:03:16]} Kd6 {[%emt 0:00:27]} 41. Ke2 {[%emt 0:31:02] And now Kd3 would win.} Kd5 $2 {[%emt 0:30:57]} (41... Kc7 {was called for.} 42. Kd3 Kb8) 42. Kd3 $18 {[%emt 0:00:16]} Kc5 {[%emt 0:00:04]} 43. h4 {[%emt 0:01:42]} f6 {[%emt 0:07:09]} 44. Ra2 {[%emt 0:03:41]} Kb6 {[%emt 0:09:42]} 45. Ra3 {[%emt 0:03:02]} g5 $2 {[%emt 0:00:25]} (45... Re7 46. Kxd4 Ka7) 46. Kxd4 {[%emt 0:00:52]} gxh4 {[%emt 0:00:16]} 47. Ke4 {[%emt 0:00:24] Threatens to win with Kf5.} Re7+ {[%emt 0:00:32]} 48. Kf5 {[%emt 0:00:11] Threatening mate with a7.} Ka7 49. Kxf6 {[%emt 0:01:40]} Re2 {[%emt 0:00:23] [#]} 50. Kg5 $1 {[%emt 0:00:28][%csl LRh4,LRh5]} Rxg2+ {[%emt 0:00:04]} 51. Kxh4 {[%emt 0:00:13]} Rh2+ {[%emt 0:00:08]} 52. Kg3 {[%emt 0:00:28]} Rh1 {[%emt 0:00:04]} 53. Ra4 {[%emt 0:00:45] Intending f4 and mate.} Rg1+ {[%emt 0:01:29]} 54. Kh4 {[%emt 0:02:57] White mates.} Rh1+ {[%emt 0:00:06] [#]} 55. Kg5 $1 {[%emt 0:00:20]} Rh2 {[%emt 0:00:23]} 56. f4 {[%emt 0:00:48]} h4 {[%emt 0:00:04]} 57. Kg4 {[%emt 0:00:33]} ({And not} 57. f5 h3 $11) 57... h3 {[%emt 0:00:33]} 58. Ra3 {[%emt 0:00:47]} Rh1 {[%emt 0:00:07]} 59. Rxh3 {[%emt 0:00:51]} Rg1+ {[%emt 0:00:10]} 60. Kf5 {[%emt 0:00:57]} Kxa6 {[%emt 0:00:10]} 61. Rb3 {[%emt 0:00:12]} Rf1 {[%emt 0:00:23]} 62. Ke5 {[%emt 0:00:24]} Rf2 {[%emt 0:00:17]} 63. f5 {[%emt 0:00:09][%cal Bf4f5,Bf5f6,Bf6f7][%mdl 32]} Re2+ {[%emt 0:00:03]} 64. Kf6 {[%emt 0:00:09]} Rf2 65. Ke6 {[%emt 0:00:09]} Re2+ {[%emt 0:00:19]} 66. Kf7 {[%emt 0:00:15]} Rf2 {[%emt 0:00:03]} 67. f6 {[%emt 0:00:05]} Rf1 {[%emt 0:00:02]} 68. Ke7 {[%emt 0:00:31]} Ka5 {[%emt 0:00:16]} 69. f7 {[%emt 0:00:25]} Re1+ {[%emt 0:00:02]} 70. Kf8 {[%emt 0:00:10]} Rf1 {[%emt 0:00:05]} 71. Rb8 {[%emt 0:00:19]} Rf2 {[%emt 0:00:12]} 72. Kg7 {[%emt 0:00:28]} Rg2+ {[%emt 0:00:11]} 73. Kh6 {[%emt 0:00:24]} Rh2+ {[%emt 0:00:52]} 74. Kg5 {[%emt 0:00:09]} Rg2+ {[%emt 0:00:26]} 75. Kh4 {[%emt 0:00:20] Weighted Error Value: White=0.19 (very precise) /Black=0.64} 1-0

[Event "58th Akiba Rubinstein D 2022"]
[Site "Polanica-Zdroj"]
[Date "2022.08.21"]
[Round "9.6"]
[White "Stepinski, Piotr"]
[Black "Markiewicz, Czeslaw"]
[Result "1/2-1/2"]
[ECO "C50"]
[WhiteElo "1568"]
[BlackElo "1750"]
[Annotator "NA RC"]
[PlyCount "47"]
[EventDate "2022.08.13"]
[EventCountry "POL"]
[SourceTitle "playchess.com"]
[Source "ChessBase"]
[SourceQuality "1"]
[TimeControl "40/5400+30:1800+30"]

1. e4 {[%emt 0:00:02]} e5 {[%emt 0:07:02]} 2. Nf3 {[%emt 0:00:01]} Nc6 {[%emt 0:00:10]} 3. d4 {[%emt 0:00:03]} exd4 {[%emt 0:00:11]} 4. Bc4 {[%emt 0:00:02]} Be7 {[%emt 0:02:22]} 5. O-O {[%emt 0:00:48]} d6 {[%emt 0:00:16]} 6. Nxd4 {[%emt 0:00:05]} Nxd4 {[%emt 0:00:23]} 7. Qxd4 {[%emt 0:00:02]} Nf6 {[%emt 0:00:26]} 8. Nc3 {[%emt 0:00:06]} O-O {[%emt 0:00:16]} 9. Be3 {[%emt 0:02:53]} Ng4 {[%emt 0:05:07]} 10. Nd5 {[%emt 0:05:06]} Bf6 {[%emt 0:01:04]} 11. Nxf6+ {[%emt 0:00:19]} Qxf6 {[%emt 0:00:23]} 12. Qxf6 {[%emt 0:00:09]} Nxf6 {[%emt 0:00:07]} 13. f3 {[%emt 0:00:04]} Be6 {[%emt 0:01:52]} 14. Bxe6 {[%emt 0:00:40]} fxe6 {[%emt 0:00:06]} 15. Rad1 {[%emt 0:00:45]} e5 {[%emt 0:00:15]} 16. Rd3 {[%emt 0:00:22]} a5 {[%emt 0:00:41]} 17. Rc3 {[%emt 0:00:21]} Rfc8 {[%emt 0:03:45]} 18. Rd1 {[%emt 0:00:08]} Kf7 {[%emt 0:00:59]} 19. Kf2 {[%emt 0:00:07]} h6 {[%emt 0:01:22]} 20. Ke2 {[%emt 0:01:06]} Ke6 {[%emt 0:01:37]} 21. Rb3 {[%emt 0:00:45]} b6 {[%emt 0:01:50]} 22. Rbd3 {[%emt 0:07:33]} Rd8 {[%emt 0:03:35]} 23. a3 {[%emt 0:01:39]} a4 {[%emt 0:03:19]} 24. c4 1/2-1/2

[Event "58th Akiba Rubinstein D 2022"]
[Site "Polanica-Zdroj"]
[Date "2022.08.21"]
[Round "9.7"]
[White "Grzebieniowski, Michal"]
[Black "Gibala, Adam"]
[Result "1-0"]
[ECO "A70"]
[WhiteElo "1710"]
[BlackElo "1549"]
[Annotator "NA RC"]
[PlyCount "53"]
[EventDate "2022.08.13"]
[EventCountry "POL"]
[SourceTitle "playchess.com"]
[Source "ChessBase"]
[SourceQuality "1"]
[TimeControl "40/5400+30:1800+30"]

1. d4 Nf6 2. c4 g6 3. Nc3 c5 4. d5 d6 5. Nf3 e6 6. e4 exd5 7. cxd5 Bg7 8. Bd3 O-O 9. O-O a6 10. a4 Nbd7 11. h3 Re8 12. Re1 Nh5 13. Be3 Ne5 14. Nxe5 Bxe5 15. Qd2 Qf6 16. Rab1 Nf4 17. Bf1 Bd7 18. a5 Qh4 19. b4 cxb4 20. Rxb4 Rac8 21. Rc1 g5 22. Rxb7 Re7 23. Ne2 Rxc1 24. Qxc1 Nxe2+ 25. Bxe2 f6 26. Rxd7 Rxd7 27. Qc8+ 1-0

[Event "58th Akiba Rubinstein D 2022"]
[Site "Polanica-Zdroj"]
[Date "2022.08.21"]
[Round "9.8"]
[White "Zerebiec, Maurycy"]
[Black "Butkiewicz, Jan"]
[Result "0-1"]
[ECO "A25"]
[WhiteElo "1915"]
[BlackElo "1613"]
[Annotator "NA RC"]
[PlyCount "108"]
[EventDate "2022.08.13"]
[EventCountry "POL"]
[SourceTitle "playchess.com"]
[Source "ChessBase"]
[SourceQuality "1"]
[TimeControl "40/5400+30:1800+30"]

1. c4 {[%emt 0:00:00]} e5 {[%emt 0:00:06]} 2. Nc3 {[%emt 0:00:01]} Nc6 {[%emt 0:00:11]} 3. g3 {[%emt 0:00:02]} g6 {[%emt 0:00:54]} 4. Bg2 {[%emt 0:00:01]} Bg7 {[%emt 0:00:21]} 5. e4 {[%emt 0:00:11]} Nd4 {[%emt 0:01:23]} 6. Nge2 {[%emt 0:00:02]} Ne7 {[%emt 0:00:59]} 7. O-O {[%emt 0:00:04]} O-O {[%emt 0:10:09]} 8. d3 {[%emt 0:00:39]} d6 {[%emt 0:02:12]} 9. Be3 {[%emt 0:00:15]} h6 {[%emt 0:11:54]} 10. f4 {[%emt 0:00:31]} Kh7 {[%emt 0:07:40]} 11. h3 {[%emt 0:00:33]} f5 {[%emt 0:01:00]} 12. Qd2 {[%emt 0:01:05]} c6 {[%emt 0:01:58]} 13. Kh2 {[%emt 0:00:24]} Be6 {[%emt 0:00:50]} 14. b4 {[%emt 0:01:46]} (14. b3 $11) 14... fxe4 {[%emt 0:08:56]} 15. fxe5 {[%emt 0:05:37]} Rxf1 {[%emt 0:06:46]} ({Much weaker is} 15... dxe5 16. Rxf8 Qxf8 17. Nxe4 $11) (15... Nxe2 $17 16. Rxf8 Qxf8) 16. Rxf1 {[%emt 0:01:07]} (16. Nxd4 $11 Rxa1 17. Nxe6) 16... Nxe2 {[%emt 0:00:24]} 17. Nxe2 {[%emt 0:01:49]} exd3 {[%emt 0:00:23]} 18. Qxd3 {[%emt 0:00:02]} dxe5 {[%emt 0:00:45]} 19. Qc2 {[%emt 0:01:02]} Bf5 {[%emt 0:07:30]} 20. Be4 {[%emt 0:01:13]} Bxe4 {[%emt 0:01:36]} 21. Qxe4 {[%emt 0:00:03]} Nf5 {[%emt 0:00:41]} 22. Bc1 {[%emt 0:01:37]} Qd6 {[%emt 0:05:42]} 23. g4 {[%emt 0:01:31]} Nd4 {[%emt 0:02:03]} 24. Rf7 {[%emt 0:07:18]} Rf8 {[%emt 0:04:19]} 25. c5 {[%emt 0:00:01]} Qb8 {[%emt 0:04:29]} 26. Rxf8 {[%emt 0:04:13]} Qxf8 {[%emt 0:00:08]} 27. Kg2 {[%emt 0:03:09]} Qf7 {[%emt 0:01:35]} 28. Nxd4 {[%emt 0:02:43]} exd4 $19 {[%emt 0:00:17]} 29. a3 {[%emt 0:00:25]} Qc4 {[%emt 0:07:30]} 30. Bd2 {[%emt 0:00:08]} Qa2 {[%emt 0:02:41]} 31. Qd3 {[%emt 0:00:42]} Qd5+ {[%emt 0:00:24]} 32. Kg1 {[%emt 0:00:13]} b6 {[%emt 0:00:56]} 33. h4 {[%emt 0:03:01]} bxc5 {[%emt 0:01:59]} 34. h5 {[%emt 0:00:14]} Qe6 {[%emt 0:00:14]} 35. hxg6+ {[%emt 0:01:19]} Qxg6 {[%emt 0:00:18]} 36. Qxg6+ {[%emt 0:00:26]} Kxg6 {[%emt 0:00:04]} 37. bxc5 {[%emt 0:00:04]} Bf8 {[%emt 0:00:18]} 38. Kf2 {[%emt 0:00:11]} Bxc5 {[%emt 0:00:15]} 39. Bc1 {[%emt 0:00:39]} Be7 {[%emt 0:01:08]} 40. Ke2 {[%emt 0:00:14]} Bg5 {[%emt 0:00:25]} 41. Bb2 {[%emt 0:30:02]} Be3 {[%emt 0:30:23]} 42. a4 {[%emt 0:00:38]} Kg5 {[%emt 0:00:26]} 43. Kf3 {[%emt 0:00:32]} c5 {[%emt 0:00:07]} 44. a5 {[%emt 0:00:07]} a6 {[%emt 0:00:11]} 45. Ba3 {[%emt 0:00:06]} c4 {[%emt 0:00:17]} 46. Bb4 {[%emt 0:00:01]} c3 {[%emt 0:00:22]} 47. Bxc3 {[%emt 0:00:01]} dxc3 {[%emt 0:00:05]} 48. Kxe3 {[%emt 0:00:05]} Kxg4 {[%emt 0:00:21]} 49. Kd3 {[%emt 0:00:01]} h5 {[%emt 0:00:29]} 50. Kxc3 {[%emt 0:00:01]} h4 {[%emt 0:00:08]} 51. Kc4 {[%emt 0:00:01]} h3 {[%emt 0:00:13]} 52. Kc5 {[%emt 0:00:07]} h2 {[%emt 0:00:04]} 53. Kb6 {[%emt 0:00:02]} h1=Q {[%emt 0:00:15]} 54. Kxa6 {[%emt 0:00:01]} Qa8+ {[%emt 0:00:12]} 0-1

[Event "58th Akiba Rubinstein D 2022"]
[Site "Polanica-Zdroj"]
[Date "2022.08.21"]
[Round "9.9"]
[White "Nowicki, Bartosz"]
[Black "Gbiorczyk, Mikolaj"]
[Result "1/2-1/2"]
[ECO "B33"]
[WhiteElo "2291"]
[BlackElo "1781"]
[Annotator "TA"]
[PlyCount "41"]
[EventDate "2022.08.13"]
[EventCountry "POL"]
[SourceTitle "playchess.com"]
[Source "ChessBase"]
[SourceQuality "1"]
[TimeControl "40/5400+30:1800+30"]

{[%evp 21,41,21,16,-10,0,-5,0,0,0,0,0,-47,0,-27,0,0,15,6,50,47,143,9]} 1. e4 {[%emt 0:00:02]} c5 {[%emt 0:00:05]} 2. Nf3 {[%emt 0:00:06]} Nc6 {[%emt 0:00:05]} 3. d4 {[%emt 0:00:14]} cxd4 {[%emt 0:00:06]} 4. Nxd4 {[%emt 0:00:02]} Nf6 {[%emt 0:00:06]} 5. Nc3 {[%emt 0:00:04]} e6 {[%emt 0:00:03]} 6. Be3 {[%emt 0:00:49]} Bb4 {[%emt 0:00:06]} 7. Bd3 {[%emt 0:01:00]} d5 {[%emt 0:00:05]} 8. exd5 {[%emt 0:03:12]} Nxd5 {[%emt 0:00:08]} 9. Nxc6 {[%emt 0:01:44]} bxc6 {[%emt 0:00:06]} 10. Bd2 {[%emt 0:01:16]} Nxc3 {[%emt 0:03:35]} 11. bxc3 {[%emt 0:01:29]} Bd6 {[%emt 0:09:02][%cal Bb4d6,Bd6h2,Bh2e5,Be5c3][%mdl 32]} 12. Qf3 {[%emt 0:14:30] B45: Sicilian Four Knights.} Qc7 {[%emt 0:09:40]} 13. h3 {[%emt 0:06:52]} Bb7 {[%emt 0:08:39]} 14. O-O {[%emt 0:02:23] The position is equal.} O-O {[%emt 0:03:05]} 15. Qe4 {[%emt 0:12:38][%csl Gd3][%cal Re4h7] [#]} g6 $1 {[%emt 0:00:21] [#]} 16. Bg5 $146 {[%emt 0:04:00]} (16. Rab1 $11 {deserves consideration.}) ({Predecessor:} 16. Qh4 c5 17. c4 Be5 18. Rab1 Rfd8 19. Ba5 Qxa5 20. Rxb7 Rab8 21. Rfb1 Rxb7 22. Rxb7 Qe1+ {0-1 (22) Venturelli,R-Mazzini,M Lunigiana 1998}) 16... Bh2+ {[%emt 0:10:00]} 17. Kh1 {[%emt 0:00:08] aiming for f4.} Be5 {[%emt 0:00:11]} 18. Rab1 $36 {[%emt 0:05:12][%cal Ob1b7][%mdl 2048] Rxb7! is the strong threat. White has some pressure.} Bxc3 {[%emt 0:12:47]} 19. Bf4 {[%emt 0:05:27]} e5 {[%emt 0:04:43]} 20. Bh6 {[%emt 0:03:55][%mdl 1024] White has compensation.} Rfb8 {[%emt 0:04:25] [#]} ({Better is} 20... Rfd8 $14) 21. Qh4 {[%emt 0:02:39] Weighted Error Value: White=0.09 (flawless) /Black=0.26 (precise)} ({White should try} 21. Bc4 $1 $16 Rd8 22. f4) 1/2-1/2

[Event "58th Akiba Rubinstein D 2022"]
[Site "Polanica-Zdroj"]
[Date "2022.08.21"]
[Round "9.10"]
[White "Wilgosz, Szczepan"]
[Black "Penza, Denis"]
[Result "0-1"]
[ECO "C09"]
[WhiteElo "1530"]
[BlackElo "1836"]
[Annotator "NA RC"]
[PlyCount "152"]
[EventDate "2022.08.13"]
[EventCountry "POL"]
[SourceTitle "playchess.com"]
[Source "ChessBase"]
[SourceQuality "1"]
[TimeControl "40/5400+30:1800+30"]

1. e4 {[%emt 0:00:03]} e6 {[%emt 0:03:57]} 2. d4 {[%emt 0:00:14]} d5 {[%emt 0:00:11]} 3. Nd2 {[%emt 0:00:23]} c5 {[%emt 0:00:30]} 4. exd5 {[%emt 0:00:21]} exd5 {[%emt 0:00:06]} 5. Ngf3 {[%emt 0:00:36]} Nc6 {[%emt 0:00:07]} 6. Bb5 {[%emt 0:00:34]} Bd6 {[%emt 0:00:07]} 7. dxc5 {[%emt 0:00:43]} Bxc5 {[%emt 0:00:29]} 8. O-O {[%emt 0:00:24]} Nge7 {[%emt 0:00:17]} 9. Nb3 {[%emt 0:03:42]} Bd6 {[%emt 0:00:05]} 10. Re1 {[%emt 0:03:05]} O-O {[%emt 0:00:14]} 11. h3 {[%emt 0:10:14]} Bf5 {[%emt 0:02:24]} 12. Bd3 {[%emt 0:02:49]} Rc8 {[%emt 0:06:17]} 13. c3 {[%emt 0:10:24]} Bb8 {[%emt 0:06:49]} 14. Nbd4 {[%emt 0:17:44]} Bg6 {[%emt 0:02:50]} 15. Ne2 {[%emt 0:03:05]} Qb6 {[%emt 0:12:38]} 16. Nf4 {[%emt 0:14:23]} Bxf4 {[%emt 0:06:42]} 17. Bxf4 {[%emt 0:00:17]} Qxb2 {[%emt 0:09:20]} 18. Bd6 {[%emt 0:09:32]} Rfe8 {[%emt 0:00:37]} 19. Bxg6 {[%emt 0:06:13]} hxg6 {[%emt 0:07:02]} 20. Rb1 {[%emt 0:09:44]} Qxc3 {[%emt 0:01:15]} 21. Rxb7 {[%emt 0:00:32]} Nf5 {[%emt 0:01:05]} 22. Rxe8+ {[%emt 0:01:02]} Rxe8 {[%emt 0:00:02]} 23. Qxd5 {[%emt 0:00:37]} Nxd6 {[%emt 0:03:09]} 24. Qxd6 {[%emt 0:00:10]} Qf6 {[%emt 0:04:56]} 25. Qd5 {[%emt 0:03:53]} Rd8 {[%emt 0:07:36]} 26. Rd7 {[%emt 0:00:39]} Rxd7 {[%emt 0:03:20]} 27. Qxd7 {[%emt 0:00:03]} Qe6 {[%emt 0:00:41]} 28. Qxe6 {[%emt 0:00:30]} fxe6 {[%emt 0:00:00]} 29. Ng5 {[%emt 0:00:47]} e5 {[%emt 0:00:25]} 30. Kf1 {[%emt 0:00:23]} Kf8 {[%emt 0:00:17]} 31. Ke2 {[%emt 0:00:51]} Ke7 {[%emt 0:00:49]} 32. Ke3 {[%emt 0:00:42]} Nb4 {[%emt 0:00:45]} 33. a4 {[%emt 0:01:24]} Nd5+ {[%emt 0:00:51]} 34. Ke4 {[%emt 0:00:32]} Nc3+ {[%emt 0:00:16]} 35. Kxe5 {[%emt 0:00:10]} Nxa4 {[%emt 0:00:04]} 36. Kd5 {[%emt 0:01:05]} Nb2 {[%emt 0:01:50]} 37. Kc5 {[%emt 0:00:37]} Nd3+ {[%emt 0:00:37]} 38. Kb5 {[%emt 0:00:09]} Nxf2 {[%emt 0:00:23]} 39. Ka6 {[%emt 0:00:17]} Kf6 {[%emt 0:00:21]} 40. h4 {[%emt 0:00:28]} Ng4 {[%emt 0:05:12]} 41. Kxa7 {[%emt 0:30:53]} Ne3 {[%emt 0:30:10]} 42. g3 {[%emt 0:00:42]} Nf5 {[%emt 0:00:22]} 43. Nh7+ {[%emt 0:00:29]} Ke7 {[%emt 0:00:54]} 44. Kb6 {[%emt 0:00:31]} Nxg3 {[%emt 0:00:13]} 45. Ng5 $2 {[%emt 0:00:33]} (45. Kc6 $15) 45... Nf5 {[%emt 0:00:30]} 46. Nf3 {[%emt 0:00:44]} Kd6 {[%emt 0:00:11]} 47. Kb5 {[%emt 0:00:48]} Kd5 {[%emt 0:00:21]} 48. Kb4 {[%emt 0:00:22]} Ke4 {[%emt 0:01:41]} 49. Ng5+ {[%emt 0:00:24]} Kf4 {[%emt 0:00:32]} 50. Kc4 {[%emt 0:00:17]} Kg4 {[%emt 0:02:58]} 51. Kd3 {[%emt 0:00:33]} Kxh4 {[%emt 0:01:47]} 52. Ne6 {[%emt 0:00:48]} Kg4 {[%emt 0:02:49]} (52... g5 $142 53. Ke4 Ng3+ 54. Kf3 Nh5) 53. Ke4 {[%emt 0:00:29]} Nd6+ {[%emt 0:01:34]} 54. Ke5 {[%emt 0:01:03]} Ne8 {[%emt 0:00:15]} 55. Ke4 {[%emt 0:00:33]} g5 {[%emt 0:00:23]} 56. Ke3 {[%emt 0:00:29]} Kf5 {[%emt 0:02:14]} 57. Nd4+ {[%emt 0:00:16]} Kg4 {[%emt 0:00:32]} 58. Ne6 {[%emt 0:00:22]} Kh4 {[%emt 0:00:28]} 59. Kf3 {[%emt 0:00:49]} g4+ {[%emt 0:00:57]} 60. Kg2 {[%emt 0:00:20]} g5 {[%emt 0:00:26]} 61. Nf8 {[%emt 0:00:33]} Nf6 {[%emt 0:00:40]} 62. Ng6+ {[%emt 0:00:15]} Kh5 {[%emt 0:00:05]} 63. Ne5 {[%emt 0:00:14]} Ne4 {[%emt 0:00:33]} 64. Nd7 {[%emt 0:01:10]} ({Better is} 64. Nc6 $15) 64... g3 {[%emt 0:00:51]} ({Black should try} 64... Kg6 $17 65. Nb8 Kf5) 65. Ne5 {[%emt 0:00:31]} Kh4 {[%emt 0:00:31]} (65... g4 $15) 66. Ng6+ {[%emt 0:00:22]} Kg4 {[%emt 0:00:32]} 67. Ne5+ {[%emt 0:00:23]} Kf5 {[%emt 0:01:00]} 68. Nc4 {[%emt 0:00:35]} Kf4 {[%emt 0:00:30]} 69. Nb2 {[%emt 0:00:32]} Nf6 {[%emt 0:01:18]} 70. Nd3+ {[%emt 0:00:09]} Ke3 $11 {[%emt 0:00:46]} 71. Nc5 $2 {[%emt 0:00:20] [#]} (71. Ne5 $11) 71... Nh5 $1 {[%emt 0:00:39]} 72. Nd7 {[%emt 0:01:08]} Kf4 {[%emt 0:00:20]} 73. Nc5 {[%emt 0:00:28]} Kg4 {[%emt 0:00:11]} 74. Nd7 {[%emt 0:00:19]} Nf4+ {[%emt 0:00:11]} 75. Kg1 {[%emt 0:00:08]} Kh3 {[%emt 0:00:40]} 76. Ne5 {[%emt 0:00:36]} Ne2+ {[%emt 0:01:01]} 0-1

[Event "58th Akiba Rubinstein D 2022"]
[Site "Polanica-Zdroj"]
[Date "2022.08.21"]
[Round "9.11"]
[White "Kryzia, Wiktor"]
[Black "Wilgosz, Jan"]
[Result "1-0"]
[ECO "C44"]
[WhiteElo "1764"]
[BlackElo "1597"]
[Annotator "NA RC"]
[PlyCount "105"]
[EventDate "2022.08.13"]
[EventCountry "POL"]
[SourceTitle "playchess.com"]
[Source "ChessBase"]
[SourceQuality "1"]
[TimeControl "40/5400+30:1800+30"]

1. e4 {[%emt 0:08:59]} e5 {[%emt 0:00:29]} 2. Nf3 {[%emt 0:00:12]} Nc6 {[%emt 0:00:09]} 3. d4 {[%emt 0:00:07]} exd4 {[%emt 0:00:52]} 4. Nxd4 {[%emt 0:00:07]} Qf6 {[%emt 0:01:18]} 5. Nxc6 {[%emt 0:00:40]} Bc5 {[%emt 0:01:14]} 6. Qf3 {[%emt 0:00:07]} Qxf3 {[%emt 0:04:17]} 7. gxf3 {[%emt 0:02:55]} dxc6 {[%emt 0:04:05]} 8. Be3 {[%emt 0:00:12]} Bb6 {[%emt 0:04:39]} 9. Bc4 {[%emt 0:04:18]} Ne7 {[%emt 0:06:21]} 10. a4 {[%emt 0:07:43]} Ng6 {[%emt 0:06:07]} 11. Rg1 {[%emt 0:11:15]} f5 {[%emt 0:16:27]} 12. Ke2 {[%emt 0:34:08]} Bd7 {[%emt 0:05:05]} 13. Nd2 {[%emt 0:06:26]} O-O-O {[%emt 0:15:57]} 14. a5 {[%emt 0:06:56]} Bxe3 {[%emt 0:00:43]} 15. fxe3 {[%emt 0:00:10]} fxe4 {[%emt 0:04:09]} 16. Nxe4 {[%emt 0:00:08]} Ne5 {[%emt 0:02:02]} 17. Bb3 {[%emt 0:01:15]} g6 {[%emt 0:05:08]} 18. f4 {[%emt 0:04:46]} Ng4 {[%emt 0:01:19]} 19. h3 {[%emt 0:00:36]} Nh6 {[%emt 0:00:44]} 20. Nf6 {[%emt 0:01:04]} Rdf8 {[%emt 0:03:12]} 21. Nxd7 {[%emt 0:00:41]} Kxd7 {[%emt 0:00:15]} 22. Rad1+ {[%emt 0:00:21]} Ke7 {[%emt 0:01:54]} 23. Rg5 {[%emt 0:01:35]} Rf5 {[%emt 0:01:50]} 24. h4 {[%emt 0:02:14]} Rxg5 {[%emt 0:05:55]} 25. hxg5 {[%emt 0:00:07]} Nf5 {[%emt 0:00:24]} 26. e4 {[%emt 0:00:32]} Nd6 {[%emt 0:01:13]} 27. Kf3 {[%emt 0:01:19]} h5 {[%emt 0:01:17]} 28. gxh6 {[%emt 0:02:09]} Rxh6 {[%emt 0:00:09]} 29. Kg4 {[%emt 0:00:15]} Kf8 {[%emt 0:04:45]} 30. Kg5 {[%emt 0:02:49]} Kg7 {[%emt 0:00:37]} 31. Kg4 {[%emt 0:01:06]} Nxe4 {[%emt 0:01:08]} 32. Rd7+ {[%emt 0:00:08]} Kf8 {[%emt 0:00:54]} 33. Rxc7 {[%emt 0:00:23]} Nc5 {[%emt 0:00:32]} 34. Kg5 {[%emt 0:00:21]} Rh2 {[%emt 0:00:42]} 35. Kxg6 {[%emt 0:00:43]} Nxb3 {[%emt 0:01:03]} 36. cxb3 {[%emt 0:00:13]} Rxb2 {[%emt 0:00:24]} 37. Kf6 {[%emt 0:00:44]} Ke8 {[%emt 0:00:15]} 38. Rxb7 {[%emt 0:00:02]} c5 {[%emt 0:00:20]} 39. f5 {[%emt 0:00:31]} c4 {[%emt 0:00:14]} 40. Re7+ {[%emt 0:00:14]} Kd8 {[%emt 0:00:16]} 41. bxc4 {[%emt 0:30:11]} Rb4 {[%emt 0:30:20]} 42. c5 {[%emt 0:01:41]} Rb5 {[%emt 0:00:15]} 43. Rxa7 {[%emt 0:00:54]} Rxc5 {[%emt 0:00:10]} 44. a6 {[%emt 0:00:21]} Kc8 {[%emt 0:00:28]} 45. Kg6 {[%emt 0:00:15]} Kb8 {[%emt 0:00:10]} 46. Rb7+ {[%emt 0:00:11]} Kc8 {[%emt 0:00:10]} 47. Rb6 {[%emt 0:00:07]} Kc7 {[%emt 0:00:12]} 48. Re6 {[%emt 0:01:37]} Kd7 {[%emt 0:00:15]} 49. a7 {[%emt 0:00:38]} Ra5 {[%emt 0:00:10]} 50. Kf6 {[%emt 0:00:11]} Kd8 {[%emt 0:00:54]} 51. Re7 {[%emt 0:00:14]} Ra6+ {[%emt 0:00:45]} 52. Kf7 {[%emt 0:00:07]} Ra5 {[%emt 0:00:22]} 53. a8=Q+ {[%emt 0:00:10]} 1-0